fUST/lending_fUST_20241228
["ID","MTS","AMOUNT","RATE_DAILY","PERIOD"]
[346860931,1735332546407,-500.0,0.0001255,2]
[346860932,1735332546429,-500.0,0.0001255,2]
[346860933,1735332546451,-500.0,0.0001255,2]
[346860934,1735332546472,-500.0,0.0001255,2]
[346860935,1735332546494,-500.0,0.0001255,2]
[346860936,1735332546515,-500.0,0.0001255,2]
[346860937,1735332546536,-500.0,0.0001255,2]
[346860938,1735332546559,-500.0,0.0001255,2]
[346860939,1735332546579,-500.0,0.0001255,2]
[346860940,1735332546600,-500.0,0.0001255,2]
[346860941,1735332546620,-500.0,0.0001255,2]
[346860942,1735332546641,-500.0,0.0001255,2]
[346860943,1735332546662,-500.0,0.0001255,2]
[346860944,1735332546683,-500.0,0.0001255,2]
[346860945,1735332546704,-500.0,0.0001255,2]
[346860946,1735332546725,-500.0,0.0001255,2]
[346860947,1735332546746,-500.0,0.0001255,2]
[346860948,1735332546767,-500.0,0.0001255,2]
[346860949,1735332546790,-500.0,0.0001255,2]
[346860950,1735332546810,-500.0,0.0001255,2]
[346860951,1735332546830,-500.0,0.0001255,2]
[346860952,1735332546851,-232.87959113,0.0001255,2]
[346860953,1735332546872,-500.0,0.0001255,2]
[346860954,1735332546892,-500.0,0.0001255,2]
[346860955,1735332546913,-500.0,0.0001255,2]
[346860956,1735332546934,-500.0,0.0001255,2]
[346860957,1735332546956,-500.0,0.0001255,2]
[346860958,1735332546976,-500.0,0.0001255,2]
[346860959,1735332546996,-500.0,0.0001255,2]
[346860960,1735332547017,-500.0,0.0001255,2]
[346860961,1735332547037,-500.0,0.0001255,2]
[346860962,1735332547058,-500.0,0.0001255,2]
[346860963,1735332547078,-500.0,0.0001255,2]
[346860964,1735332547099,-500.0,0.0001255,2]
[346860965,1735332547120,-500.0,0.0001255,2]
[346860966,1735332547139,-500.0,0.0001255,2]
[346860967,1735332547160,-500.0,0.0001255,2]
[346860968,1735332547180,-500.0,0.0001255,2]
[346860969,1735332547202,-500.0,0.0001255,2]
[346860970,1735332547222,-500.0,0.0001255,2]
[346860971,1735332547242,-500.0,0.0001255,2]
[346860972,1735332547263,-500.0,0.0001255,2]
[346860973,1735332547284,-165.12547492,0.0001255,2]
[346860974,1735332547305,-500.0,0.0001255,2]
[346860975,1735332547326,-500.0,0.0001255,2]
[346860976,1735332547347,-500.0,0.0001255,2]
[346860977,1735332547369,-500.0,0.0001255,2]
[346860978,1735332547390,-500.0,0.0001255,2]
[346860979,1735332547411,-500.0,0.0001255,2]
[346860980,1735332547433,-500.0,0.0001255,2]
[346860981,1735332547456,-500.0,0.0001255,2]
[346860982,1735332547478,-500.0,0.0001255,2]
[346860983,1735332547498,-500.0,0.0001255,2]
[346860984,1735332547519,-500.0,0.0001255,2]
[346860985,1735332547541,-500.0,0.0001255,2]
[346860986,1735332547561,-500.0,0.00012551,2]
[346860987,1735332547673,-500.0,0.00012551,2]
[346860988,1735332547701,-500.0,0.00012551,2]
[346860989,1735332547724,-500.0,0.00012551,2]
[346860990,1735332547746,-347.79723069,0.00012551,2]
[346860991,1735332547768,-500.0,0.00012551,2]
[346860992,1735332547794,-69.74778361,0.00012551,2]
[346860993,1735332547867,-430.25221639,0.00012551,2]
[346860994,1735332547887,-500.0,0.00012551,2]
[346860995,1735332547908,-353.87540839,0.00012551,2]
[346860996,1735332547933,-146.12459161,0.00012551,2]
[346860997,1735332547954,-500.0,0.00012551,2]
[346860998,1735332547973,-500.0,0.00012551,2]
[346860999,1735332547993,-500.0,0.00012551,2]
[346861000,1735332548012,-500.0,0.00012551,2]
[346861001,1735332548033,-500.0,0.00012551,2]
[346861002,1735332548053,-500.0,0.00012551,2]
[346861003,1735332548074,-500.0,0.00012551,2]
[346861004,1735332548095,-500.0,0.00012551,2]
[346861005,1735332548115,-500.0,0.00012551,2]
[346861006,1735332548134,-500.0,0.00012551,2]
[346861007,1735332548154,-559.34,0.00012551,2]
[346861008,1735332548173,-500.0,0.00012551,2]
[346861009,1735332548194,-500.0,0.00012551,2]
[346861010,1735332548214,-450.0,0.00012551,2]
[346861011,1735332548234,-500.0,0.00012551,2]
[346861012,1735332548255,-500.0,0.00012551,2]
[346861013,1735332548275,-500.0,0.00012551,2]
[346861014,1735332548294,-500.0,0.00012551,2]
[346861015,1735332548315,-500.0,0.00012551,2]
[346861016,1735332548334,-500.0,0.00012551,2]
[346861017,1735332548355,-500.0,0.00012551,2]
[346861018,1735332548375,-500.0,0.00012551,2]
[346861019,1735332548395,-500.0,0.00012551,2]
[346861020,1735332548415,-500.0,0.00012551,2]
[346861021,1735332548435,-500.0,0.00012551,2]
[346861022,1735332548455,-500.0,0.00012551,2]
[346861023,1735332548475,-1000.0,0.00012551,2]
[346861024,1735332548496,-500.0,0.00012551,2]
[346861025,1735332548516,-500.0,0.00012551,2]
[346861026,1735332548535,-500.0,0.00012551,2]
[346861027,1735332548556,-500.0,0.00012553,2]
[346861028,1735332550059,500.0,0.00011483,2]
[346861029,1735332550305,500.0,0.00011756,2]
[346861030,1735332551011,500.0,0.0001203,2]
[346861032,1735332554110,-454.30916343,0.00012824,2]
[346861033,1735332560142,-78.27083657,0.00012824,2]
[346861034,1735332560163,-500.0,0.00012824,2]
[346861035,1735332560184,-500.0,0.00012824,2]
[346861036,1735332560207,-500.0,0.00012824,2]
[346861037,1735332560228,-500.0,0.00012824,2]
[346861038,1735332560249,-500.0,0.00012824,2]
[346861039,1735332560270,-500.0,0.00012824,2]
[346861040,1735332560291,-500.0,0.00012824,2]
[346861041,1735332560314,-652.5,0.00012824,2]
[346861042,1735332560335,-500.0,0.00012824,2]
[346861043,1735332560356,-500.0,0.00012824,2]
[346861044,1735332560377,-500.0,0.00012824,2]
[346861045,1735332560398,-500.0,0.00012824,2]
[346861046,1735332560420,-500.0,0.00012824,2]
[346861047,1735332560441,-500.0,0.00012824,2]
[346861048,1735332560465,-500.0,0.00012824,2]
[346861049,1735332560486,-500.0,0.00012824,2]
[346861050,1735332560507,-500.0,0.00012824,2]
[346861051,1735332560528,-592.57,0.00012824,2]
[346861052,1735332560549,-500.0,0.00012824,2]
[346861053,1735332560571,-500.0,0.00012824,2]
[346861054,1735332560592,-500.0,0.00012824,2]
[346861055,1735332560613,-500.0,0.00012824,2]
[346861056,1735332560635,-418.95523688,0.00012824,2]
[346861057,1735332560657,-500.0,0.00012824,2]
[346861058,1735332560679,-423.46808263,0.00012824,2]
[346861059,1735332560700,-500.0,0.00012824,2]
[346861060,1735332560722,-500.0,0.00012824,2]
[346861061,1735332560743,-500.0,0.00012824,2]
[346861062,1735332560764,-500.0,0.00012824,2]
[346861063,1735332560789,-500.0,0.00012824,2]
[346861064,1735332560811,-500.0,0.00012824,2]
[346861065,1735332560833,-611.36150352,0.00012825,2]
[346861066,1735332560856,-386.67,0.00012825,2]
[346861067,1735332560878,-500.0,0.00012825,2]
[346861068,1735332560899,-500.0,0.00012825,2]
[346861069,1735332560920,-500.0,0.00012825,2]
[346861070,1735332560943,-500.0,0.00012825,2]
[346861071,1735332560966,-500.0,0.00012825,2]
[346861072,1735332560986,-500.0,0.00012825,2]
[346861073,1735332561007,-500.0,0.00012825,2]
[346861074,1735332561029,-1000.0,0.00012825,2]
[346861075,1735332561050,-500.0,0.00012825,2]
[346861076,1735332561070,-625.50503899,0.00012825,2]
[346861077,1735332561091,-500.0,0.00012827,2]
[346861078,1735332561112,-163.26537265,0.000129,2]
[346861079,1735332561133,-576.31,0.00013098,2]
[346861080,1735332561156,-500.0,0.00013098,2]
[346861081,1735332561178,-500.0,0.00013098,2]
[346861082,1735332561199,-500.0,0.00013098,2]
[346861083,1735332561221,-500.0,0.00013098,2]
[346861084,1735332561242,-652.5,0.00013098,2]
[346861085,1735332561264,-500.0,0.00013098,2]
[346861086,1735332561285,-500.0,0.00013098,2]
[346861087,1735332561400,-598.73,0.00013098,2]
[346861088,1735332561423,-500.0,0.00013098,2]
[346861089,1735332561443,-500.0,0.00013098,2]
[346861090,1735332561467,-500.0,0.00013098,2]
[346861091,1735332561488,-500.0,0.00013098,2]
[346861092,1735332561509,-500.0,0.00013098,2]
[346861093,1735332561530,-500.0,0.00013098,2]
[346861094,1735332561553,-500.0,0.00013098,2]
[346861095,1735332561573,-500.0,0.00013098,2]
[346861096,1735332561594,-500.0,0.00013098,2]
[346861097,1735332561615,-500.0,0.00013098,2]
[346861098,1735332561636,-500.0,0.00013098,2]
[346861099,1735332561656,-500.0,0.00013098,2]
[346861100,1735332561677,-500.0,0.00013098,2]
[346861101,1735332561703,-365.62,0.00013098,2]
[346861102,1735332561724,-500.0,0.00013099,2]
[346861103,1735332561745,-500.0,0.00013099,2]
[346861104,1735332561766,-500.0,0.00013099,2]
[346861105,1735332561793,-500.0,0.00013099,2]
[346861106,1735332561816,-635.88,0.00013099,2]
[346861107,1735332561839,-624.44,0.00013099,2]
[346861108,1735332561865,-1000.0,0.00013099,2]
[346861109,1735332561886,-500.0,0.00013372,2]
[346861110,1735332561907,-500.0,0.00013372,2]
[346861111,1735332561928,-652.5,0.00013372,2]
[346861112,1735332561952,-500.0,0.00013372,2]
[346861113,1735332561973,-263.10228976,0.00013372,2]
[346861114,1735332561993,-500.0,0.00013372,2]
[346861115,1735332562012,-531.62,0.00013372,2]
[346861116,1735332562031,-500.0,0.00013372,2]
[346861117,1735332562051,-500.0,0.00013372,2]
[346861118,1735332562072,-500.0,0.00013373,2]
[346861119,1735332562092,-446.4701209,0.00013373,2]
[346861120,1735332562112,-500.0,0.00013646,2]
[346861121,1735332562132,-500.0,0.00013646,2]
[346861122,1735332562153,-652.5,0.00013646,2]
[346861123,1735332562172,-312.65719359,0.00013646,2]
[346861124,1735332562192,-500.0,0.00013646,2]
[346861125,1735332562213,-500.0,0.00013646,2]
[346861126,1735332562235,-500.0,0.00013647,2]
[346861127,1735332562264,-500.0,0.0001392,2]
[346861128,1735332562288,-652.5,0.0001392,2]
[346861129,1735332562310,-377.97,0.0001392,2]
[346861130,1735332562332,-500.0,0.0001392,2]
[346861131,1735332562354,-500.0,0.00013921,2]
[346861132,1735332562374,-400.0,0.00013973,2]
[346861133,1735332562396,-393.78,0.00014194,2]
[346861134,1735332562418,-652.5,0.00014194,2]
[346861135,1735332562440,-296.25,0.00014194,2]
[346861136,1735332562462,-392.4688597,0.00014195,2]
[346861137,1735332562487,-652.5,0.00014468,2]
[346861138,1735332562508,-652.5,0.00014742,2]
[346861139,1735332562529,-163.26537264,0.00015009,2]
[346861140,1735332562552,-652.5,0.00015016,2]
[346861141,1735332562573,-652.5,0.0001529,2]
[346861142,1735332562595,-652.5,0.00015564,2]
[346861143,1735332562617,-652.5,0.00015838,2]
[346861144,1735332562639,-652.5,0.00016112,2]
[346861145,1735332562661,-652.5,0.00016386,2]
[346861146,1735332562683,-137.86542592,0.00016438,2]
[346861149,1735332620033,500.0,0.0001255,2]
[346861174,1735332632308,-500.0,0.00012824,2]
[346861176,1735332632318,-500.0,0.00013098,2]
[346861177,1735332632327,-500.0,0.00013372,2]
[346861178,1735332632337,-500.0,0.00013646,2]
[346861180,1735332632346,-500.0,0.0001392,2]
[346861181,1735332632356,-500.0,0.00014194,2]
[346861182,1735332632366,-500.0,0.00014468,2]
[346861184,1735332632375,-500.0,0.00014742,2]
[346861186,1735332632384,-500.0,0.00015016,2]
[346861187,1735332632394,-500.0,0.0001529,2]
[346861188,1735332632403,-500.0,0.00015564,2]
[346861189,1735332632413,-525.14061728,0.00015838,2]
[346861190,1735332632423,-362.13457408,0.00016438,2]
[346861191,1735332632432,-169.777,0.00016581,2]
[346861192,1735332632442,-226.97,0.000171,2]
[346861193,1735332632451,-163.26537264,0.00017568,2]
[346861194,1735332632462,-500.0,0.00017808,4]
[346861195,1735332632472,-458.75249187,0.0001863,2]
[346861202,1735332638101,-891.85929846,0.000189,2]
[346861203,1735332638157,-2987.89764277,0.000189,2]
[346861204,1735332638167,-500.0,0.00019178,6]
[346861205,1735332638176,-244.148184,0.00019178,2]
[346861206,1735332638185,-616.032,0.0001921,2]
[346861207,1735332638195,-1437.8950015,0.00019303,2]
[346861208,1735332638206,-2351.19660636,0.00019303,2]
[346861209,1735332638216,-500.0,0.00019587,2]
[346861210,1735332638226,-151.0,0.00019875,7]
[346861211,1735332638235,-151.40492784,0.0002,2]
[346861212,1735332638244,-8323.54140996,0.00020013,2]
[346861213,1735332638257,-1987.00623683,0.00020013,2]
[346861214,1735332638267,-708.2260789,0.00020016,2]
[346861215,1735332638278,-500.0,0.00020099,2]
[346861216,1735332638288,-597.66090568,0.00020099,2]
[346861217,1735332638297,-351.1454146,0.00020099,2]
[346861219,1735332638307,-167.73516772,0.00020099,2]
[346861221,1735332638316,-1688.52640196,0.000201,2]
[346861223,1735332638326,-1688.52640193,0.000201,2]
[346861226,1735332638335,-1688.52640193,0.000201,2]
[346861229,1735332638345,-1688.52640193,0.000201,2]
[346861230,1735332638355,-4599.38832551,0.000201,2]
[346861231,1735332638364,-4599.3883255,0.000201,2]
[346861232,1735332638374,-4599.3883255,0.000201,2]
[346861233,1735332638384,-4599.3883255,0.000201,2]
[346861234,1735332638393,-12038.46964964,0.000201,2]
[346861235,1735332638402,-12038.46964964,0.000201,2]
[346861236,1735332638412,-12038.46964964,0.000201,2]
[346861237,1735332638421,-12038.46964964,0.000201,2]
[346861238,1735332638430,-160.0,0.00020109,5]
[346861239,1735332638440,-163.26537264,0.00020128,2]
[346861240,1735332638449,-9699.824992,0.00020128,3]
[346861241,1735332638459,-974.599999,0.000202,2]
[346861242,1735332638468,-2000.0,0.000202,2]
[346861243,1735332638477,-7996.68853102,0.0002021,2]
[346861244,1735332638487,-151.0,0.00020218,2]
[346861245,1735332638497,-151.0,0.00020219,15]
[346861246,1735332638506,-151.0,0.00020219,15]
[346861247,1735332638516,-150.23,0.00020224,10]
[346861248,1735332638525,-500.0,0.00020224,10]
[346861249,1735332638535,-201.86550242,0.00020224,10]
[346861250,1735332638544,-150.23,0.00020224,10]
[346861251,1735332638554,-226.50874368,0.00020224,2]
[346861252,1735332638563,-151.40543675,0.00020224,10]
[346861253,1735332638573,-179.2896496,0.00020227,2]
[346861254,1735332638583,-1633.94686263,0.00020228,2]
[346861255,1735332638592,-29964.84506328,0.00020228,2]
[346861256,1735332639215,-17742.18499348,0.00020228,2]
[346861257,1735332639227,-106979.45,0.00020228,2]
[346861258,1735332639239,-2026.76720729,0.00020228,2]
[346861274,1735332640148,-1665.55000003,0.00020228,2]
[346861388,1735332643236,-394.0,0.00019556,2]
[346861390,1735332643245,-207.63635246,0.00020228,2]
[346861393,1735332643257,-804.82261135,0.00020228,2]
[346861703,1735332646193,-1035.5468875,0.00020228,2]
[346862212,1735332689466,104.76729699,0.00012005,2]
[346862213,1735332689490,223.88112319,0.00012005,2]
[346862230,1735333536191,-281.24725649,0.0001075,2]
[346862231,1735333548092,-509.78624566,0.0001075,2]
[346862248,1735333627180,-156.73515065,0.00010642,2]
[346862250,1735333627203,-1167.59541184,0.0001075,2]
[346862254,1735333638088,-1479.39927591,0.0001075,2]
[346862255,1735333638111,-300.0,0.00011481,2]
[346862256,1735333638133,-267.07,0.00011482,2]
[346862257,1735333638159,-500.0,0.00011482,2]
[346862258,1735333638180,-500.0,0.00011482,2]
[346862259,1735333638202,-500.0,0.00011482,2]
[346862260,1735333638223,-585.87511532,0.00011482,2]
[346862261,1735333638245,-500.0,0.00011482,2]
[346862262,1735333638266,-500.0,0.00011482,2]
[346862263,1735333638287,-500.0,0.00011482,2]
[346862264,1735333638308,-500.0,0.00011482,2]
[346862265,1735333638329,-500.0,0.00011482,2]
[346862266,1735333638349,-158.20649199,0.00011482,2]
[346862267,1735333638370,-500.0,0.00011482,2]
[346862268,1735333638392,-500.0,0.00011482,2]
[346862269,1735333638416,-500.0,0.00011482,2]
[346862270,1735333638437,-500.0,0.00011482,2]
[346862271,1735333638458,-301.04072164,0.00011482,2]
[346862272,1735333638479,-500.0,0.00011482,2]
[346862273,1735333638500,-500.0,0.00011482,2]
[346862274,1735333638521,-500.0,0.00011482,2]
[346862275,1735333638543,-500.0,0.00011482,2]
[346862276,1735333638683,-500.0,0.00011482,2]
[346862277,1735333638706,-500.0,0.00011482,2]
[346862278,1735333638728,-500.0,0.00011482,2]
[346862279,1735333638750,-354.2050969,0.00011482,2]
[346862280,1735333638772,-500.0,0.00011482,2]
[346862281,1735333638793,-500.0,0.00011482,2]
[346862282,1735333638815,-500.0,0.00011482,2]
[346862283,1735333638837,-500.0,0.00011482,2]
[346862284,1735333638859,-500.0,0.00011482,2]
[346862285,1735333638879,-500.0,0.00011482,2]
[346862286,1735333638901,-500.0,0.00011482,2]
[346862287,1735333638923,-519.0,0.00011482,2]
[346862288,1735333638944,-500.0,0.00011482,2]
[346862289,1735333638965,-500.0,0.00011482,2]
[346862290,1735333638986,-500.0,0.00011482,2]
[346862291,1735333639008,-500.0,0.00011482,2]
[346862292,1735333639029,-500.0,0.00011482,2]
[346862293,1735333639051,-500.0,0.00011482,2]
[346862294,1735333639072,-218.12554487,0.00011482,2]
[346862295,1735333639092,-500.0,0.00011482,2]
[346862296,1735333639115,-395.9599469,0.00011482,2]
[346862297,1735333639136,-500.0,0.00011482,2]
[346862298,1735333639161,-500.0,0.00011482,2]
[346862299,1735333639183,-0.45867835,0.00011482,2]
[346862300,1735333642095,-499.54132165,0.00011482,2]
[346862301,1735333642116,-456.48608484,0.00011482,2]
[346862302,1735333654133,-43.51391516,0.00011482,2]
[346862303,1735333654159,-500.0,0.00011482,2]
[346862304,1735333654181,-500.0,0.00011482,2]
[346862305,1735333654203,-500.0,0.00011482,2]
[346862306,1735333654225,-494.78764262,0.00011482,2]
[346862309,1735333748113,-500.0,0.00011481,2]
[346862310,1735333748134,-500.0,0.00011481,2]
[346862311,1735333748155,-300.0,0.00011481,2]
[346862312,1735333748181,-5.21235738,0.00011482,2]
[346862313,1735333748202,-500.0,0.00011482,2]
[346862314,1735333748224,-500.0,0.00011482,2]
[346862315,1735333748245,-500.0,0.00011482,2]
[346862316,1735333748267,-500.0,0.00011482,2]
[346862317,1735333748288,-500.0,0.00011482,2]
[346862318,1735333748308,-500.0,0.00011482,2]
[346862319,1735333748329,-500.0,0.00011482,2]
[346862320,1735333748351,-500.0,0.00011482,2]
[346862321,1735333748374,-500.0,0.00011482,2]
[346862322,1735333748395,-500.0,0.00011482,2]
[346862323,1735333748417,-500.0,0.00011482,2]
[346862324,1735333748438,-500.0,0.00011482,2]
[346862325,1735333748459,-500.0,0.00011482,2]
[346862326,1735333748482,-500.0,0.00011482,2]
[346862327,1735333748504,-500.0,0.00011482,2]
[346862328,1735333748527,-500.0,0.00011482,2]
[346862329,1735333748551,-500.0,0.00011482,2]
[346862330,1735333748573,-500.0,0.00011482,2]
[346862331,1735333748595,-500.0,0.00011482,2]
[346862332,1735333748617,-500.0,0.00011482,2]
[346862333,1735333748638,-500.0,0.00011482,2]
[346862334,1735333748659,-500.0,0.00011482,2]
[346862335,1735333748680,-500.0,0.00011482,2]
[346862336,1735333748702,-500.0,0.00011482,2]
[346862337,1735333748724,-500.0,0.00011482,2]
[346862338,1735333748745,-500.0,0.00011482,2]
[346862339,1735333748768,-500.0,0.00011482,2]
[346862340,1735333748791,-500.0,0.00011482,2]
[346862341,1735333748811,-500.0,0.00011482,2]
[346862342,1735333748836,-500.0,0.00011482,2]
[346862343,1735333748857,-500.0,0.00011482,2]
[346862344,1735333748880,-500.0,0.00011482,2]
[346862345,1735333748904,-500.0,0.00011482,2]
[346862346,1735333748942,-500.0,0.00011482,2]
[346862347,1735333748984,-500.0,0.00011482,2]
[346862348,1735333749018,-440.2493037,0.00011482,2]
[346862349,1735333749039,-500.0,0.00011482,2]
[346862350,1735333749059,-500.0,0.00011482,2]
[346862351,1735333749081,-500.0,0.00011482,2]
[346862352,1735333749106,-500.0,0.00011482,2]
[346862353,1735333749126,-500.0,0.00011482,2]
[346862354,1735333749256,-500.0,0.00011482,2]
[346862355,1735333749282,-500.0,0.00011482,2]
[346862356,1735333749321,-500.0,0.00011482,2]
[346862357,1735333749362,-500.0,0.00011482,2]
[346862358,1735333749392,-500.0,0.00011482,2]
[346862359,1735333749413,-500.0,0.00011482,2]
[346862360,1735333749433,-500.0,0.00011482,2]
[346862361,1735333749455,-500.0,0.00011482,2]
[346862362,1735333749477,-180.25905462,0.00011482,2]
[346862363,1735333749499,-500.0,0.00011482,2]
[346862364,1735333749525,-500.0,0.00011482,2]
[346862365,1735333749546,-500.0,0.00011482,2]
[346862366,1735333749567,-500.0,0.00011482,2]
[346862367,1735333749588,-500.0,0.00011482,2]
[346862368,1735333749608,-500.0,0.00011482,2]
[346862369,1735333749629,-500.0,0.00011482,2]
[346862370,1735333749655,-520.21562192,0.00011482,2]
[346862371,1735333749680,-500.0,0.00011482,2]
[346862372,1735333749705,-500.0,0.00011482,2]
[346862373,1735333749734,-500.0,0.00011482,2]
[346862374,1735333749758,-206.08,0.00011482,2]
[346862375,1735333749781,-504.09511256,0.00011483,2]
[346862376,1735333749806,-500.0,0.00011483,2]
[346862377,1735333749831,-500.0,0.00011483,2]
[346862378,1735333749856,-500.0,0.00011483,2]
[346862379,1735333749880,-500.0,0.00011483,2]
[346862380,1735333749903,-500.0,0.00011483,2]
[346862381,1735333749923,-598.79023601,0.00011483,2]
[346862382,1735333749943,-500.0,0.00011483,2]
[346862383,1735333749962,-500.0,0.00011483,2]
[346862384,1735333749984,-500.0,0.00011483,2]
[346862385,1735333750004,-500.0,0.00011483,2]
[346862386,1735333750026,-500.0,0.00011483,2]
[346862387,1735333750046,-500.0,0.00011483,2]
[346862388,1735333750066,-500.0,0.00011483,2]
[346862389,1735333750088,-501.37689288,0.00011483,2]
[346862390,1735333750110,-500.0,0.00011483,2]
[346862391,1735333750130,-500.0,0.00011483,2]
[346862392,1735333750150,-500.0,0.00011483,2]
[346862393,1735333750173,-500.0,0.00011483,2]
[346862394,1735333750192,-500.0,0.00011483,2]
[346862395,1735333750213,-419.17602008,0.00011483,2]
[346862396,1735333750234,-500.0,0.00011483,2]
[346862397,1735333750256,-500.0,0.00011483,2]
[346862398,1735333750276,-500.0,0.00011483,2]
[346862399,1735333750296,-500.0,0.00011483,2]
[346862400,1735333750315,-500.0,0.00011483,2]
[346862401,1735333750336,-500.0,0.00011483,2]
[346862402,1735333750356,-526.85867809,0.00011483,2]
[346862403,1735333750377,-500.0,0.00011483,2]
[346862404,1735333750398,-500.0,0.00011483,2]
[346862405,1735333750418,-503.47595851,0.00011483,2]
[346862406,1735333750439,-500.0,0.00011483,2]
[346862407,1735333750460,-500.0,0.00011483,2]
[346862408,1735333750480,-500.0,0.00011483,2]
[346862409,1735333750501,-500.0,0.00011483,2]
[346862410,1735333750521,-527.43670235,0.00011483,2]
[346862411,1735333750541,-500.0,0.00011483,2]
[346862412,1735333750562,-500.0,0.00011483,2]
[346862413,1735333750582,-500.0,0.00011483,2]
[346862414,1735333750602,-503.70124032,0.00011483,2]
[346862415,1735333750622,-500.0,0.00011483,2]
[346862416,1735333750642,-500.0,0.00011483,2]
[346862417,1735333750662,-500.0,0.00011483,2]
[346862418,1735333750682,-500.0,0.00011483,2]
[346862419,1735333750703,-500.0,0.00011483,2]
[346862420,1735333750722,-500.0,0.00011483,2]
[346862421,1735333750742,-500.0,0.00011483,2]
[346862422,1735333750763,-500.0,0.00011483,2]
[346862423,1735333750782,-500.0,0.00011483,2]
[346862424,1735333750803,-500.0,0.00011483,2]
[346862425,1735333750823,-500.0,0.00011483,2]
[346862426,1735333750844,-500.0,0.00011483,2]
[346862427,1735333750864,-500.0,0.00011483,2]
[346862428,1735333750886,-500.0,0.00011483,2]
[346862429,1735333750907,-500.0,0.00011483,2]
[346862430,1735333750927,-500.0,0.00011483,2]
[346862431,1735333750949,-500.0,0.00011483,2]
[346862432,1735333750970,-500.0,0.00011483,2]
[346862433,1735333750993,-500.0,0.00011483,2]
[346862434,1735333751015,-500.0,0.00011483,2]
[346862435,1735333751039,-500.0,0.00011483,2]
[346862436,1735333751061,-500.0,0.00011755,2]
[346862437,1735333751082,-500.0,0.00011755,2]
[346862438,1735333751101,-564.07,0.00011755,2]
[346862439,1735333751122,-500.0,0.00011755,2]
[346862440,1735333751143,-3623.71,0.00011755,2]
[346862441,1735333751165,-500.0,0.00011755,2]
[346862442,1735333751186,-500.0,0.00011755,2]
[346862443,1735333751206,-631.19,0.00011755,2]
[346862444,1735333751229,-500.0,0.00011755,2]
[346862445,1735333751250,-500.0,0.00011755,2]
[346862446,1735333751271,-506.91132699,0.00011756,2]
[346862447,1735333751290,-500.0,0.00011756,2]
[346862448,1735333751311,-500.0,0.00011756,2]
[346862449,1735333751332,-500.0,0.00011756,2]
[346862450,1735333751352,-500.0,0.00011756,2]
[346862451,1735333751373,-500.0,0.00011756,2]
[346862452,1735333751394,-500.0,0.00011756,2]
[346862453,1735333751415,-500.0,0.00011756,2]
[346862454,1735333751435,-500.0,0.00011756,2]
[346862455,1735333751455,-500.0,0.00011756,2]
[346862456,1735333751475,-500.0,0.00011756,2]
[346862457,1735333751494,-599.9001642,0.00011756,2]
[346862458,1735333751514,-500.0,0.00011756,2]
[346862459,1735333751534,-500.0,0.00011756,2]
[346862460,1735333751553,-500.0,0.00011756,2]